fUST/lending_fUST_20250701
["ID","MTS","AMOUNT","RATE_DAILY","PERIOD"]
[368815239,1751370640025,-427.70920329,0.0001749,2]
[368815240,1751370640034,-188.84936183,0.0001749,2]
[368815241,1751370640043,-500.0,0.0001749,2]
[368815242,1751370640052,-1000.0,0.0001749,2]
[368815243,1751370640061,-370000.0,0.00017491,2]
[368815244,1751370640071,-1000.0,0.00017544,2]
[368815245,1751370640080,-460.0,0.0001757,2]
[368815246,1751370640089,-460.0,0.0001757,2]
[368815247,1751370640099,-460.0,0.0001757,2]
[368815248,1751370640108,-460.0,0.00017571,2]
[368815249,1751370640117,-460.0,0.00017571,2]
[368815250,1751370640126,-460.0,0.00017571,2]
[368815251,1751370640135,-460.0,0.00017571,2]
[368815252,1751370640144,-460.0,0.00017571,2]
[368815253,1751370640154,-463.92278916,0.00017571,2]
[368815254,1751370640163,-460.0,0.00017571,2]
[368815255,1751370640172,-460.0,0.00017571,2]
[368815257,1751370640182,-460.0,0.00017571,2]
[368815259,1751370640191,-460.0,0.00017571,2]
[368815261,1751370640204,-509.09178691,0.00017571,2]
[368815263,1751370640215,-460.0,0.00017571,2]
[368815265,1751370640225,-460.0,0.00017571,2]
[368815267,1751370640234,-463.37645513,0.00017571,2]
[368815269,1751370640243,-474.02210447,0.00017571,2]
[368815271,1751370640252,-460.0,0.00017571,2]
[368815273,1751370640261,-460.0,0.00017571,2]
[368815275,1751370640271,-460.0,0.00017571,2]
[368815277,1751370640281,-1000.0,0.00017571,2]
[368815279,1751370640290,-460.0,0.00017571,2]
[368815281,1751370640299,-293.90070353,0.00017571,2]
[368815283,1751370640308,-460.0,0.00017571,2]
[368815285,1751370640317,-460.0,0.00017571,2]
[368815287,1751370640326,-460.0,0.00017571,2]
[368815289,1751370640335,-1000.0,0.00017572,2]
[368815291,1751370640345,-1000.0,0.0001759,2]
[368815293,1751370640354,-701.52,0.0001759,2]
[368815295,1751370640364,-460.0,0.00017758,2]
[368815297,1751370640373,-460.0,0.00017758,2]
[368815299,1751370640382,-460.0,0.00017758,2]
[368815301,1751370640392,-460.0,0.00017758,2]
[368815303,1751370640401,-320.74979638,0.00017758,2]
[368815305,1751370640411,-460.0,0.00017758,2]
[368815307,1751370640420,-460.0,0.00017758,2]
[368815309,1751370640429,-460.0,0.00017758,2]
[368815311,1751370640439,-460.0,0.00017758,2]
[368815313,1751370640448,-460.0,0.00017758,2]
[368815315,1751370640457,-588.36,0.00017758,2]
[368815317,1751370640466,-460.0,0.00017758,2]
[368815319,1751370640475,-460.0,0.00017758,2]
[368815321,1751370640485,-460.0,0.00017758,2]
[368815323,1751370640494,-956.92,0.00017758,2]
[368815325,1751370640503,-460.0,0.00017758,2]
[368815327,1751370640512,-460.0,0.00017758,2]
[368815329,1751370640521,-460.0,0.00017758,2]
[368815331,1751370640530,-460.0,0.00017758,2]
[368815333,1751370640539,-605.71,0.00017758,2]
[368815335,1751370640548,-460.0,0.00017758,2]
[368815337,1751370640559,-460.0,0.00017758,2]
[368815339,1751370640568,-460.0,0.00017758,2]
[368815341,1751370640578,-551.95484866,0.00017759,2]
[368815343,1751370640587,-460.0,0.00017759,2]
[368815345,1751370640597,-460.0,0.00017759,2]
[368815347,1751370640607,-360.68929597,0.00017759,2]
[368815349,1751370640617,-460.0,0.00017759,2]
[368815351,1751370640626,-494.77,0.00017759,2]
[368815353,1751370640636,-460.0,0.00017759,2]
[368815356,1751370640647,-460.0,0.00017759,2]
[368815358,1751370640658,-707.54,0.00017759,2]
[368815360,1751370640668,-460.0,0.00017759,2]
[368815362,1751370640678,-460.0,0.00017759,2]
[368815364,1751370640687,-472.98,0.00017759,2]
[368815366,1751370640698,-460.0,0.00017759,2]
[368815367,1751370640709,-460.0,0.00017759,2]
[368815370,1751370640719,-460.0,0.00017759,2]
[368815372,1751370640728,-460.0,0.00017759,2]
[368815374,1751370640738,-460.0,0.00017759,2]
[368815376,1751370640747,-460.0,0.00017759,2]
[368815377,1751370640757,-460.0,0.00017759,2]
[368815379,1751370640766,-460.0,0.00017759,2]
[368815381,1751370640776,-472.67,0.00017759,2]
[368815383,1751370640786,-460.0,0.00017759,2]
[368815385,1751370640795,-460.0,0.00017759,2]
[368815387,1751370640805,-1363.56,0.00017759,2]
[368815389,1751370640815,-460.0,0.00017759,2]
[368815392,1751370640825,-460.0,0.0001776,2]
[368815393,1751370640834,-151.78809051,0.0001776,2]
[368815396,1751370640844,-460.0,0.0001776,2]
[368815398,1751370640854,-460.0,0.0001776,2]
[368815399,1751370640863,-378.67733996,0.0001776,2]
[368815402,1751370640873,-460.0,0.0001776,2]
[368815404,1751370640882,-460.0,0.0001776,2]
[368815406,1751370640892,-602.63,0.0001776,2]
[368815408,1751370640901,-460.0,0.0001776,2]
[368815410,1751370640910,-460.0,0.0001776,2]
[368815412,1751370640920,-460.0,0.0001776,2]
[368815414,1751370640929,-460.0,0.0001776,2]
[368815416,1751370640938,-460.0,0.0001776,2]
[368815418,1751370640948,-332.74467165,0.0001776,2]
[368815420,1751370640961,-460.0,0.0001776,2]
[368815422,1751370640971,-460.0,0.0001776,2]
[368815424,1751370640982,-460.0,0.0001776,2]
[368815426,1751370640991,-460.0,0.0001776,2]
[368815428,1751370641000,-460.0,0.0001776,2]
[368815430,1751370641010,-460.0,0.0001776,2]
[368815432,1751370641024,-460.0,0.0001776,2]
[368815434,1751370641033,-460.0,0.0001776,2]
[368815436,1751370641043,-460.0,0.0001776,2]
[368815438,1751370641052,-303.22,0.0001776,2]
[368815440,1751370641061,-460.0,0.0001776,2]
[368815442,1751370641071,-460.0,0.0001776,2]
[368815444,1751370641080,-460.0,0.0001776,2]
[368815446,1751370641090,-460.0,0.0001776,2]
[368815448,1751370641100,-460.0,0.0001776,2]
[368815450,1751370641109,-460.0,0.0001776,2]
[368815452,1751370641118,-460.0,0.0001776,2]
[368815454,1751370641127,-214.67,0.0001776,2]
[368815456,1751370641137,-460.0,0.0001776,2]
[368815458,1751370641146,-888.59,0.0001776,2]
[368815460,1751370641155,-460.0,0.0001776,2]
[368815462,1751370641164,-460.0,0.0001776,2]
[368815464,1751370641174,-279.29,0.0001776,2]
[368815466,1751370641185,-460.0,0.0001776,2]
[368815468,1751370641194,-460.0,0.0001776,2]
[368815470,1751370641203,-460.0,0.0001776,2]
[368815472,1751370641212,-514.64,0.0001776,2]
[368815474,1751370641222,-460.0,0.0001776,2]
[368815476,1751370641231,-460.0,0.0001776,2]
[368815478,1751370641241,-460.0,0.0001776,2]
[368815480,1751370641250,-544.40575996,0.0001776,2]
[368815482,1751370641260,-460.0,0.0001776,2]
[368815484,1751370641269,-460.0,0.0001776,2]
[368815486,1751370641279,-460.0,0.00017761,2]
[368815488,1751370641292,-462.14113955,0.00017761,2]
[368815490,1751370641303,-460.0,0.00017761,2]
[368815492,1751370641312,-460.0,0.00017761,2]
[368815494,1751370641321,-460.0,0.00017761,2]
[368815496,1751370641331,-460.0,0.00017761,2]
[368815498,1751370641340,-460.0,0.00017761,2]
[368815500,1751370641349,-460.0,0.00017761,2]
[368815502,1751370641359,-460.0,0.00017761,2]
[368815504,1751370641368,-666.77,0.00017761,2]
[368815506,1751370641378,-460.0,0.00017761,2]
[368815508,1751370641387,-460.0,0.00017761,2]
[368815511,1751370641398,-564.01,0.00017761,2]
[368815513,1751370641407,-460.0,0.00017761,2]
[368815515,1751370641417,-460.0,0.00017761,2]
[368815517,1751370641426,-460.0,0.00017761,2]
[368815519,1751370641436,-2296.63,0.00017761,2]
[368815521,1751370641445,-460.0,0.00017761,2]
[368815523,1751370641454,-359.30059341,0.00017844,2]
[368815525,1751370641465,-460.0,0.00017844,2]
[368815527,1751370641475,-460.0,0.00017845,2]
[368815529,1751370641484,-473.34154621,0.00017845,2]
[368815530,1751370641494,-460.0,0.00017845,2]
[368815532,1751370641504,-460.0,0.00017845,2]
[368815534,1751370641514,-460.0,0.00017845,2]
[368815537,1751370641524,-460.0,0.00017845,2]
[368815539,1751370641534,-460.0,0.00017845,2]
[368815540,1751370641543,-460.0,0.00017845,2]
[368815543,1751370641553,-3993.09103847,0.00017884,2]
[368815545,1751370641562,-500.0,0.00018021,2]
[368815547,1751370641571,-547.34,0.00018032,2]
[368815549,1751370641581,-252.04220623,0.00018032,2]
[368815551,1751370641590,-460.0,0.00018032,2]
[368815553,1751370641599,-464.86,0.00018032,2]
[368815555,1751370641609,-588.36,0.00018032,2]
[368815557,1751370641618,-537.92,0.00018032,2]
[368815559,1751370641628,-411.93,0.00018032,2]
[368815561,1751370641638,-956.92,0.00018032,2]
[368815562,1751370641648,-460.0,0.00018032,2]
[368815564,1751370641659,-355.0774049,0.00018032,2]
[368815566,1751370641669,-460.0,0.00018032,2]
[368815568,1751370641679,-605.71,0.00018032,2]
[368815571,1751370641689,-460.0,0.00018032,2]
[368815572,1751370641701,-460.0,0.00018032,2]
[368815575,1751370641712,-383.00653123,0.00018032,2]
[368815577,1751370641721,-460.0,0.00018033,2]
[368815579,1751370641731,-460.0,0.00018033,2]
[368815581,1751370641741,-494.77,0.00018033,2]
[368815583,1751370641751,-707.54,0.00018033,2]
[368815585,1751370641761,-460.0,0.00018033,2]
[368815587,1751370641771,-460.0,0.00018033,2]
[368815589,1751370641783,-472.98,0.00018033,2]
[368815591,1751370641793,-460.0,0.00018033,2]
[368815593,1751370641807,-495.71,0.00018033,2]
[368815595,1751370641817,-460.0,0.00018033,2]
[368815597,1751370641827,-598.15,0.00018033,2]
[368815599,1751370641837,-460.0,0.00018033,2]
[368815601,1751370641847,-460.0,0.00018033,2]
[368815603,1751370641856,-460.0,0.00018033,2]
[368815605,1751370641866,-460.0,0.00018033,2]
[368815607,1751370641875,-1363.56,0.00018033,2]
[368815609,1751370641884,-460.0,0.00018034,2]
[368815611,1751370641894,-460.0,0.00018034,2]
[368815613,1751370641903,-460.0,0.00018034,2]
[368815615,1751370641913,-460.0,0.00018034,2]
[368815617,1751370641922,-474.58,0.00018034,2]
[368815619,1751370641932,-189.71,0.00018034,2]
[368815621,1751370641941,-460.0,0.00018034,2]
[368815623,1751370641951,-460.0,0.00018034,2]
[368815625,1751370641960,-460.0,0.00018034,2]
[368815627,1751370641969,-460.0,0.00018034,2]
[368815629,1751370641979,-522.63,0.00018034,2]
[368815631,1751370641989,-460.0,0.00018034,2]
[368815633,1751370641998,-341.89,0.00018034,2]
[368815635,1751370642008,-460.0,0.00018034,2]
[368815637,1751370642018,-460.0,0.00018034,2]
[368815639,1751370642027,-479.29,0.00018034,2]
[368815641,1751370642041,-888.59,0.00018034,2]
[368815643,1751370642050,-460.0,0.00018034,2]
[368815656,1751370642151,-375.82,0.00018034,2]
[368815658,1751370642163,-460.0,0.00018034,2]
[368815660,1751370642173,-460.0,0.00018034,2]
[368815662,1751370642182,-460.0,0.00018034,2]
[368815664,1751370642192,-514.64,0.00018034,2]
[368815666,1751370642202,-460.0,0.00018034,2]
[368815668,1751370642211,-460.0,0.00018034,2]
[368815670,1751370642221,-460.0,0.00018034,2]
[368815671,1751370642231,-232.2,0.00018034,2]
[368815673,1751370642240,-241.59,0.00018034,2]
[368815675,1751370642251,-460.0,0.00018035,2]
[368815677,1751370642260,-513.24667154,0.00018035,2]
[368815680,1751370642270,-208.76,0.00018035,2]
[368815681,1751370642280,-460.0,0.00018035,2]
[368815685,1751370642290,-666.77,0.00018035,2]
[368815687,1751370642299,-363.07,0.00018035,2]
[368815691,1751370642308,-460.0,0.00018035,2]
[368815694,1751370642317,-564.01,0.00018035,2]
[368815697,1751370642326,-460.0,0.00018035,2]
[368815700,1751370642336,-460.0,0.00018035,2]
[368815704,1751370642346,-460.0,0.00018035,2]
[368815708,1751370642355,-2296.63,0.00018035,2]
[368815713,1751370642365,-460.0,0.00018035,2]
[368815716,1751370642375,-460.0,0.00018119,2]
[368815719,1751370642385,-501.47,0.00018119,2]
[368815721,1751370642395,-460.0,0.00018119,2]
[368815724,1751370642405,-460.0,0.00018119,2]
[368815727,1751370642414,-413.59,0.00018306,2]
[368815729,1751370642423,-588.36,0.00018306,2]
[368815731,1751370642432,-956.92,0.00018306,2]
[368815734,1751370642442,-460.0,0.00018306,2]
[368815736,1751370642452,-460.0,0.00018306,2]
[368815738,1751370642462,-605.71,0.00018306,2]
[368815740,1751370642471,-460.0,0.00018306,2]
[368815742,1751370642482,-460.0,0.00018306,2]
[368815744,1751370642492,-494.77,0.00018307,2]
[368815746,1751370642502,-707.54,0.00018307,2]
[368815748,1751370642511,-460.0,0.00018307,2]
[368815750,1751370642520,-460.0,0.00018307,2]
[368815752,1751370642530,-472.98,0.00018307,2]
[368815754,1751370642539,-460.0,0.00018307,2]
[368815756,1751370642549,-460.0,0.00018307,2]
[368815758,1751370642559,-388.73,0.00018307,2]
[368815760,1751370642568,-460.0,0.00018307,2]
[368815762,1751370642577,-460.0,0.00018307,2]
[368815764,1751370642587,-519.93476172,0.00018307,2]
[368815766,1751370642597,-1363.56,0.00018307,2]
[368815768,1751370642607,-460.0,0.00018308,2]
[368815770,1751370642616,-529.09,0.00018308,2]
[368815772,1751370642625,-235.28,0.00018308,2]
[368815774,1751370642635,-460.0,0.00018308,2]
[368815776,1751370642644,-460.0,0.00018308,2]
[368815778,1751370642654,-460.0,0.00018308,2]
[368815780,1751370642663,-357.27,0.00018308,2]
[368815782,1751370642677,-888.59,0.00018308,2]
[368815784,1751370642686,-460.0,0.00018308,2]
[368815786,1751370642697,-460.0,0.00018308,2]
[368815788,1751370642709,-460.0,0.00018308,2]
[368815790,1751370642719,-460.0,0.00018308,2]
[368815792,1751370642729,-514.64,0.00018308,2]
[368815795,1751370642739,-460.0,0.00018308,2]
[368815797,1751370642749,-235.18,0.00018308,2]
[368815799,1751370642759,-460.0,0.00018308,2]
[368815801,1751370642768,-460.0,0.00018309,2]
[368815802,1751370642778,-460.0,0.00018309,2]
[368815805,1751370642789,-666.77,0.00018309,2]
[368815807,1751370642799,-460.0,0.00018309,2]
[368815809,1751370642813,-564.01,0.00018309,2]
[368815811,1751370642824,-460.0,0.00018309,2]
[368815813,1751370642834,-460.0,0.00018309,2]
[368815815,1751370642844,-2296.63,0.00018309,2]
[368815817,1751370642853,-460.0,0.00018309,2]
[368815820,1751370642863,-460.0,0.00018393,2]
[368815822,1751370642872,-460.0,0.00018393,2]
[368815825,1751370642882,-460.0,0.00018393,2]
[368815827,1751370642892,-588.36,0.0001858,2]
[368815828,1751370642902,-956.92,0.0001858,2]
[368815830,1751370642911,-460.0,0.0001858,2]
[368815832,1751370642921,-460.0,0.0001858,2]
[368815834,1751370642930,-605.71,0.0001858,2]
[368815837,1751370642941,-460.0,0.0001858,2]
[368815839,1751370642951,-460.0,0.0001858,2]
[368815843,1751370642962,-494.77,0.00018581,2]
[368815845,1751370642971,-707.54,0.00018581,2]
[368815847,1751370642982,-491.12,0.00018581,2]
[368815849,1751370642992,-460.0,0.00018581,2]
[368815851,1751370643001,-472.98,0.00018581,2]
[368815853,1751370643010,-460.0,0.00018581,2]
[368815855,1751370643019,-460.0,0.00018581,2]
[368815857,1751370643029,-460.0,0.00018581,2]
[368815858,1751370643039,-460.0,0.00018581,2]
[368815861,1751370643049,-1363.56,0.00018581,2]
[368815862,1751370643059,-460.0,0.00018582,2]
[368815865,1751370643070,-460.0,0.00018582,2]
[368815867,1751370643081,-460.0,0.00018582,2]
[368815869,1751370643092,-460.0,0.00018582,2]
[368815871,1751370643102,-888.59,0.00018582,2]
[368815873,1751370643111,-460.0,0.00018582,2]
[368815875,1751370643121,-460.0,0.00018582,2]
[368815877,1751370643130,-460.0,0.00018582,2]
[368815879,1751370643140,-460.0,0.00018582,2]
[368815881,1751370643150,-514.64,0.00018582,2]
[368815883,1751370643160,-460.0,0.00018582,2]
[368815885,1751370643170,-460.0,0.00018582,2]
[368815887,1751370643179,-460.0,0.00018583,2]
[368815889,1751370643188,-460.0,0.00018583,2]
[368815891,1751370643198,-666.77,0.00018583,2]
[368815893,1751370643209,-460.0,0.00018583,2]
[368815895,1751370643219,-564.01,0.00018583,2]
[368815897,1751370643228,-460.0,0.00018583,2]
[368815899,1751370643237,-2296.63,0.00018583,2]
[368815901,1751370643251,-460.0,0.00018583,2]
[368815904,1751370643265,-460.0,0.00018667,2]
[368815906,1751370643278,-460.0,0.00018667,2]
[368815909,1751370643291,-460.0,0.00018667,2]
[368815911,1751370643302,-847.26,0.00018851,3]
[368815913,1751370643314,-423.62,0.00018851,3]
[368815915,1751370643327,-588.36,0.00018854,2]
[368815918,1751370643340,-956.92,0.00018854,2]
[368815920,1751370643353,-460.0,0.00018854,2]
[368815922,1751370643367,-326.1002701,0.00018854,2]
[368815925,1751370643381,-605.71,0.00018854,2]
[368815927,1751370643393,-460.0,0.00018854,2]
[368815929,1751370643406,-460.0,0.00018854,2]
[368815932,1751370643418,-494.77,0.00018855,2]
[368815934,1751370643427,-707.54,0.00018855,2]
[368815936,1751370643440,-460.0,0.00018855,2]
[368815938,1751370643452,-472.98,0.00018855,2]
[368815940,1751370643464,-460.0,0.00018855,2]
[368815943,1751370643476,-460.0,0.00018855,2]
[368815945,1751370643489,-304.16750462,0.00018855,2]
[368815947,1751370643501,-460.0,0.00018855,2]
[368815950,1751370643514,-1363.56,0.00018855,2]
[368815952,1751370643527,-309.80196835,0.00018856,2]
[368815954,1751370643539,-460.0,0.00018856,2]
[368815956,1751370643550,-460.0,0.00018856,2]
[368815959,1751370643563,-439.47,0.00018856,2]
[368815961,1751370643575,-888.59,0.00018856,2]
[368815963,1751370643588,-460.0,0.00018856,2]
[368815965,1751370643600,-460.0,0.00018856,2]
[368815968,1751370643612,-460.0,0.00018856,2]
[368815970,1751370643623,-460.0,0.00018856,2]
[368815972,1751370643635,-514.64,0.00018856,2]
[368815974,1751370643648,-460.0,0.00018856,2]
[368815977,1751370643662,-460.0,0.00018856,2]
[368815979,1751370643675,-460.0,0.00018857,2]
[368815981,1751370643687,-460.0,0.00018857,2]
[368815984,1751370643700,-666.77,0.00018857,2]
[368815986,1751370643713,-460.0,0.00018857,2]
[368815988,1751370643723,-564.01,0.00018857,2]
[368815990,1751370643734,-460.0,0.00018857,2]
[368815992,1751370643745,-2296.63,0.00018857,2]
[368815995,1751370643758,-460.0,0.00018857,2]
[368815997,1751370643774,-255.73258177,0.00018863,2]
[368815999,1751370643786,-1051.82669681,0.000189,2]
[368816002,1751370643796,-1472.78627927,0.000189,2]
[368816004,1751370643806,-460.0,0.00018941,2]
[368816006,1751370643816,-460.0,0.00018941,2]
[368816008,1751370643828,-460.0,0.00018941,2]
[368816010,1751370643840,-420.0,0.00019086,2]
[368816013,1751370643851,-160.0,0.00019098,2]
[368816015,1751370643861,-160.0,0.00019098,2]
[368816017,1751370643872,-213.87551669,0.00019098,2]
[368816019,1751370643882,-160.0,0.00019098,2]
[368816021,1751370643892,-160.0,0.00019098,2]
[368816023,1751370643903,-160.0,0.00019098,2]
[368816026,1751370643914,-215.01728679,0.00019098,2]
[368816028,1751370643925,-837.20943635,0.00019098,2]
[368816030,1751370643936,-230.32585361,0.00019098,2]
[368816032,1751370643947,-847.53272281,0.00019098,2]
[368816034,1751370643958,-12571.40790328,0.00019098,2]
[368816036,1751370643969,-160.0,0.00019098,2]
[368816039,1751370643980,-160.0,0.00019098,2]
[368816041,1751370643991,-160.0,0.00019098,2]
[368816043,1751370644003,-160.0,0.00019098,2]
[368816045,1751370644013,-600.0,0.00019109,2]
[368816047,1751370644024,-588.36,0.00019128,2]
[368816049,1751370644035,-956.92,0.00019128,2]
[368816051,1751370644045,-460.0,0.00019128,2]
[368816054,1751370644057,-605.71,0.00019128,2]
[368816056,1751370644069,-460.0,0.00019128,2]
[368816058,1751370644081,-406.61,0.00019128,2]
[368816060,1751370644092,-494.77,0.00019129,2]
[368816062,1751370644102,-707.54,0.00019129,2]
[368816064,1751370644113,-460.0,0.00019129,2]
[368816066,1751370644124,-472.98,0.00019129,2]
[368816068,1751370644135,-460.0,0.00019129,2]
[368816071,1751370644147,-460.0,0.00019129,2]
[368816072,1751370644157,-460.0,0.00019129,2]
[368816073,1751370644169,-1363.56,0.00019129,2]
[368816074,1751370644180,-460.0,0.0001913,2]
[368816075,1751370644190,-460.0,0.0001913,2]
[368816076,1751370644202,-888.59,0.0001913,2]
[368816077,1751370644213,-460.0,0.0001913,2]
[368816078,1751370644224,-571.21557794,0.0001913,2]
[368816079,1751370644235,-460.0,0.0001913,2]
[368816080,1751370644245,-460.0,0.0001913,2]
[368816081,1751370644257,-514.64,0.0001913,2]
[368816082,1751370644268,-460.0,0.0001913,2]
[368816083,1751370644279,-460.0,0.0001913,2]
[368816084,1751370644289,-460.0,0.00019131,2]
[368816085,1751370644299,-460.0,0.00019131,2]
[368816086,1751370644311,-666.77,0.00019131,2]
[368816087,1751370644321,-460.0,0.00019131,2]
[368816088,1751370644332,-564.01,0.00019131,2]
[368816089,1751370644343,-460.0,0.00019131,2]
[368816090,1751370644354,-2296.63,0.00019131,2]
[368816091,1751370644366,-460.0,0.00019131,2]
[368816093,1751370644377,-1472.78627921,0.00019141,2]
[368816095,1751370644388,-258.61216817,0.00019178,2]
[368816097,1751370644399,-317.304213,0.00019178,2]
[368816100,1751370644410,-1344.96,0.000192,2]
[368816102,1751370644421,-460.0,0.00019215,2]
[368816104,1751370644433,-460.0,0.00019215,2]
[368816106,1751370644444,-100000.0,0.00019329,2]
[368816108,1751370644455,-500.0,0.00019373,2]
[368816110,1751370644467,-500.0,0.00019373,2]
[368816113,1751370644478,-540.0,0.00019373,2]
[368816114,1751370644487,-1472.78627921,0.00019383,2]
[368816130,1751370644625,-588.36,0.00019402,2]
[368816132,1751370644639,-956.92,0.00019402,2]
[368816134,1751370644648,-460.0,0.00019402,2]
[368816136,1751370644658,-605.71,0.00019402,2]
[368816138,1751370644667,-460.0,0.00019402,2]
[368816140,1751370644676,-494.77,0.00019403,2]
[368816142,1751370644686,-707.54,0.00019403,2]
[368816144,1751370644695,-460.0,0.00019403,2]
[368816146,1751370644709,-472.98,0.00019403,2]
[368816148,1751370644718,-460.0,0.00019403,2]
[368816150,1751370644727,-460.0,0.00019403,2]
[368816152,1751370644736,-460.0,0.00019403,2]
[368816154,1751370644745,-1363.56,0.00019403,2]
[368816156,1751370644754,-460.0,0.00019404,2]
[368816158,1751370644764,-460.0,0.00019404,2]
[368816160,1751370644773,-888.59,0.00019404,2]
[368816162,1751370644783,-239.21,0.00019404,2]
[368816164,1751370644794,-460.0,0.00019404,2]
[368816166,1751370644803,-508.88,0.00019404,2]
[368816168,1751370644813,-514.64,0.00019404,2]
[368816170,1751370644823,-460.0,0.00019404,2]
[368816172,1751370644832,-460.0,0.00019404,2]
[368816174,1751370644841,-460.0,0.00019405,2]
[368816176,1751370644851,-460.0,0.00019405,2]
[368816178,1751370644860,-666.77,0.00019405,2]
[368816180,1751370644869,-460.0,0.00019405,2]
[368816182,1751370644879,-564.01,0.00019405,2]
[368816184,1751370644888,-460.0,0.00019405,2]
[368816186,1751370644897,-2296.63,0.00019405,2]
[368816188,1751370644906,-460.0,0.00019405,2]
[368816190,1751370644916,-460.0,0.00019489,2]
[368816192,1751370644925,-460.0,0.00019489,2]
[368816194,1751370644935,-1472.78627921,0.00019624,2]
[368816196,1751370644944,-588.36,0.00019676,2]
[368816198,1751370644953,-956.92,0.00019676,2]
[368816200,1751370644963,-460.0,0.00019676,2]
[368816202,1751370644973,-605.71,0.00019676,2]
[368816204,1751370644983,-460.0,0.00019676,2]
[368816206,1751370644992,-494.77,0.00019677,2]
[368816207,1751370645002,-707.54,0.00019677,2]
[368816210,1751370645012,-460.0,0.00019677,2]
[368816212,1751370645022,-472.98,0.00019677,2]
[368816214,1751370645031,-460.0,0.00019677,2]
[368816216,1751370645040,-460.0,0.00019677,2]
[368816218,1751370645049,-460.0,0.00019677,2]
[368816219,1751370645058,-1363.56,0.00019677,2]
[368816221,1751370645068,-460.0,0.00019678,2]
[368816224,1751370645077,-460.0,0.00019678,2]
[368816225,1751370645086,-888.59,0.00019678,2]
[368816228,1751370645097,-460.0,0.00019678,2]
[368816230,1751370645106,-514.64,0.00019678,2]
[368816232,1751370645116,-460.0,0.00019678,2]
[368816234,1751370645125,-460.0,0.00019678,2]
[368816235,1751370645135,-456.54960213,0.00019679,2]
[368816334,1751370646066,-460.0,0.00017484,2]
[368816336,1751370646075,-460.0,0.00017486,2]
[368816338,1751370646085,-460.0,0.00017758,2]
[368816340,1751370646095,-196.2886001,0.0001776,2]
[368816342,1751370646104,-280.56629723,0.00018032,2]
[368816344,1751370646115,-179.43370277,0.00018032,2]
[368816346,1751370646124,-460.0,0.00018306,2]
[368816348,1751370646134,-460.0,0.0001858,2]
[368816350,1751370646143,-460.0,0.00018854,2]
[368816352,1751370646153,-460.0,0.00019128,2]
[368816354,1751370646162,-460.0,0.00019402,2]
[368816356,1751370646172,-460.0,0.00019676,2]
[368816358,1751370646182,-3.45039787,0.00019679,2]
[368816359,1751370646191,-460.0,0.00019679,2]
[368816361,1751370646200,-173.55039552,0.00019679,2]
[368816365,1751370646261,-460.0,0.00017484,2]
[368816367,1751370646270,-258.89390562,0.00017485,2]